bitfinex/quotes_ETHUSD_20250428
["timestamp","ask_amount","ask_price","bid_price","bid_amount"]
[1745810613048,4.23955685,1781.2,1780.6,0.829]
[1745810613273,4.23955685,1781.2,1780.7,0.821]
[1745810614557,0.42395568,1781.1,1780.7,0.821]
[1745810614960,0.42395568,1781.1,1780.7,0.321]
[1745810615671,0.71207662,1781.0,1780.7,0.321]
[1745810615871,0.64188344,1781.0,1780.7,0.321]
[1745810616038,0.42395568,1781.1,1780.7,0.321]
[1745810616438,3.0,1781.0,1780.7,0.321]
[1745810616652,0.3,1780.9,1780.7,0.321]
[1745810619051,0.59767341,1781.2,1780.8,0.7957]
[1745810619255,5.98173408,1781.5,1780.8,0.7957]
[1745810620351,3.64188344,1781.4,1780.8,0.7957]
[1745810624291,0.64188344,1781.2,1780.8,0.7957]
[1745810624581,0.64188344,1781.0,1780.5,0.7959]
[1745810625181,0.64188344,1781.1,1780.5,0.7959]
[1745810625546,0.64188344,1781.1,1780.5,1.35149]
[1745810626181,0.64188344,1781.1,1780.5,0.55559]
[1745810626387,0.64188344,1781.1,1780.6,0.7581]
[1745810626951,0.64188344,1780.9,1780.6,0.7581]
[1745810627150,0.07020511,1780.8,1780.4,5.5872]
[1745810627389,0.37120886,1780.8,1780.4,5.5872]
[1745810627806,0.07020738,1781.2,1780.4,5.5872]
[1745810627807,1.27465732,1781.5,1780.5,0.8272]
[1745810627985,1.27465732,1781.5,1781.0,0.64188344]
[1745810627986,0.005,1781.5,1781.0,0.64188344]
[1745810628154,0.005,1781.5,1781.1,5.5622]
[1745810628998,0.005,1781.5,1781.1,0.8022]
[1745810631357,0.64188344,1781.4,1781.1,0.8022]
[1745810632481,0.7608,1781.5,1781.1,0.8022]
[1745810633452,0.005,1781.5,1781.1,0.8022]
[1745810634075,3.005,1781.5,1781.1,1.35842]
[1745810634360,0.005,1781.5,1781.2,0.8043]
[1745810634559,0.005,1781.5,1781.2,5.5643]
[1745810634789,0.005,1781.5,1781.3,0.8043]
[1745810635281,0.005,1781.5,1781.3,1.36073]
[1745810636389,0.005,1781.5,1781.3,0.8043]
[1745810638694,0.005,1781.5,1781.1,4.759]
[1745810638695,0.005,1781.5,1781.2,0.79]
[1745810641164,3.005,1781.5,1781.0,0.8318]
[1745810642505,0.8218,1781.4,1781.0,0.8318]
[1745810642727,1.20448,1781.4,1781.0,0.8318]
[1745810644966,1.84636344,1781.4,1780.8,4.759]
[1745810645271,1.84636344,1781.4,1780.8,5.5126]
[1745810645802,1.84636344,1781.4,1780.8,0.7536]
[1745810645803,3.0,1781.3,1780.8,0.7536]
[1745810646108,0.71206875,1781.2,1780.8,0.7536]
[1745810646403,0.64188344,1781.2,1780.8,0.7536]
[1745810646614,1.00607178,1781.2,1780.8,0.7536]
[1745810646811,1.00607178,1781.2,1780.6,4.759]
[1745810646812,0.64188344,1781.0,1780.6,5.5911]
[1745810646974,6.61861752,1781.0,1780.5,4.759]
[1745810647176,6.61861752,1781.0,1780.5,5.31811]
[1745810650017,0.64188344,1780.6,1780.2,4.59527591]
[1745810650192,1.45998344,1780.6,1780.3,4.76]
[1745810652717,1.45998344,1780.6,1780.1,5.5158]
[1745810653117,3.0,1780.7,1780.1,5.5158]
[1745810653425,3.0,1780.7,1780.2,0.55158]
[1745810661640,6.25401752,1780.8,1780.2,0.55158]
[1745810662147,6.25401752,1780.8,1780.1,5.5158]
[1745810662148,0.7672,1780.6,1780.1,5.5158]
[1745810665511,1.40908344,1780.6,1780.1,4.76]
[1745810665719,0.64188344,1780.2,1779.8,4.828]
[1745810665920,0.7672,1780.0,1779.7,5.629]
[1745810666144,0.7672,1780.0,1779.7,6.56821759]
[1745810666751,0.7672,1780.0,1779.7,5.76721759]
[1745810668348,0.7672,1780.0,1779.7,4.828]
[1745810669355,5.59393408,1780.1,1779.7,4.828]
[1745810669561,5.59393408,1780.1,1779.8,0.801]
[1745810669562,4.82673408,1780.1,1779.8,0.801]
[1745810675055,0.8182,1780.3,1779.8,0.801]
[1745810677993,5.63603408,1780.5,1779.8,0.801]
[1745810678352,5.6373,1780.6,1780.0,0.7759]
[1745810680688,5.63603408,1780.8,1780.2,0.7759]
[1745810680850,0.8093,1780.9,1780.4,0.7759]
[1745810683387,4.82673408,1781.1,1780.6,1.45958344]
[1745810683579,4.82673408,1781.1,1780.7,0.8177]
[1745810683772,0.7927,1781.3,1780.7,0.8177]
[1745810683972,0.7927,1781.3,1780.7,1.44645834]
[1745810684595,5.62443408,1781.5,1780.8,0.8177]
[1745810684894,4.83173408,1781.5,1780.9,0.8177]
[1745810685095,0.7927,1781.4,1780.9,0.8177]
[1745810685457,0.64188344,1781.3,1780.7,1.44645834]
[1745810685858,0.86288587,1781.2,1780.8,4.807]
[1745810686061,0.7927,1781.2,1780.8,4.807]
[1745810686260,0.64188344,1781.1,1780.8,4.807]
[1745810686700,5.61943408,1781.2,1780.8,4.807]
[1745810686994,0.64188344,1781.1,1780.8,4.807]
[1745810687168,0.64188344,1781.1,1780.3,3.76317591]
[1745810687169,0.64188344,1780.9,1780.3,3.76317591]
[1745810687374,5.46861752,1780.9,1780.4,5.18331759]
[1745810687859,0.7927,1780.8,1780.4,4.807]
[1745810692385,0.7631,1780.6,1780.3,4.807]
[1745810695802,5.58983408,1780.6,1780.3,4.807]
[1745810701216,5.58983408,1780.6,1780.1,0.7829]
[1745810706416,5.58983408,1780.6,1780.0,5.5795]
[1745810706619,5.58983408,1780.6,1780.1,0.55795]
[1745810709124,6.23171752,1780.6,1780.0,5.5795]
[1745810709496,1.46598344,1780.4,1779.8,0.8084]
[1745810709848,0.8241,1780.1,1779.7,3.76317591]
[1745810712433,0.64188344,1780.0,1779.7,3.76317591]
[1745810712631,4.82673408,1780.0,1779.7,3.76317591]
[1745810712840,4.82673408,1780.0,1779.7,0.833]
[1745810714629,5.45600583,1780.0,1779.6,4.807]
[1745810716959,0.7576,1779.9,1779.6,4.807]
[1745810717892,0.7576,1779.9,1779.5,0.833]
[1745810718029,0.7576,1779.9,1779.5,4.786]
[1745810718526,1.39948344,1779.9,1779.4,4.786]
[1745810718757,3.802,1779.8,1779.4,4.786]
[1745810719127,0.7835,1779.7,1779.4,4.786]
[1745810720338,6.25211752,1779.7,1779.1,3.76317591]
[1745810720560,6.25211752,1779.7,1779.3,4.786]
[1745810720761,5.46861752,1779.7,1779.3,4.786]
[1745810720958,1.33036175,1779.6,1779.3,4.786]
[1745810721268,0.7835,1779.6,1779.3,4.786]
[1745810726957,5.46861752,1779.7,1779.4,0.7917]
[1745810726958,4.82673408,1779.7,1779.4,0.7917]
[1745810729791,4.82673408,1779.7,1779.3,5.5777]
[1745810730895,5.57823408,1779.8,1779.3,5.5777]
[1745810731083,5.57823408,1779.8,1779.3,6.13547]
[1745810733888,0.8117,1779.6,1779.3,4.786]
[1745810736707,4.82673408,1779.8,1779.3,4.786]
[1745810736912,5.62803408,1779.8,1779.3,4.786]
[1745810737113,5.62803408,1779.8,1779.3,5.5626]
[1745810737275,5.62803408,1779.8,1779.3,6.18304834]
[1745810738978,5.62803408,1779.8,1779.3,5.40644834]
[1745810739412,5.62803408,1779.8,1779.3,4.786]
[1745810741888,0.7655,1779.7,1779.3,4.786]
[1745810744499,3.0,1779.7,1779.3,4.786]
[1745810744698,0.8267,1779.6,1779.3,4.786]
[1745810745089,0.8083,1779.5,1779.1,4.787]
[1745810745485,5.63503408,1779.5,1779.1,4.787]
[1745810745686,6.26272583,1779.5,1779.1,4.787]
[1745810746806,6.26272583,1779.5,1778.9,0.8291]
[1745810747116,0.8083,1779.4,1778.9,0.8291]
[1745810751294,6.27691752,1779.4,1778.8,5.59]
[1745810751494,5.46861752,1779.4,1778.8,0.824]
[1745810751698,5.46861752,1779.4,1778.8,4.767]
[1745810751699,0.8013,1779.2,1778.8,4.767]
[1745810751899,5.62803408,1779.2,1778.8,4.767]
[1745810752098,5.62803408,1779.2,1778.7,16.883]
[1745810752337,5.62803408,1779.2,1778.7,21.65]
[1745810754199,6.26991752,1779.2,1778.7,21.65]
[1745810755140,6.68990232,1779.2,1778.7,21.65]
[1745810755740,0.8066,1779.1,1778.7,16.883]
[1745810755936,0.8066,1779.1,1778.7,21.65]
[1745810758103,4.82673408,1779.2,1778.8,1.40328344]
[1745810759747,0.8307,1779.5,1779.0,0.64188344]
[1745810760046,4.82673408,1779.7,1779.2,0.8118]
[1745810760214,0.8307,1779.6,1779.2,1.36968]
[1745810761444,0.41354736,1779.7,1779.2,1.36968]
[1745810761625,5.29931752,1779.8,1779.2,1.36968]
[1745810761945,2.29931752,1779.8,1779.2,1.36968]
[1745810762143,1.65743408,1779.8,1779.2,2.01156344]
[1745810762349,1.65743408,1779.8,1779.2,1.36968]
[1745810763847,1.65743408,1779.8,1779.3,0.8063]
[1745810766019,0.8289,1779.9,1779.3,0.8063]
[1745810767042,0.89913788,1779.9,1779.3,0.8063]
[1745810767235,0.8289,1779.9,1779.3,1.31903559]
[1745810768558,0.64188344,1779.8,1779.3,1.31903559]
[1745810768774,0.8213,1779.7,1779.3,1.31903559]
[1745810769471,0.8213,1779.7,1779.3,0.8063]
[1745810770278,0.64188344,1779.6,1779.2,0.55788]
[1745810770563,0.64188344,1779.6,1779.2,4.766]
[1745810770968,0.64188344,1779.4,1779.1,8.52917591]
[1745810771522,0.8152,1779.3,1779.1,8.52917591]
[1745810771726,0.8152,1779.3,1779.1,3.76317591]
[1745810772030,1.16881261,1779.3,1779.0,3.76317591]
[1745810773360,0.8152,1779.3,1779.0,3.76317591]
[1745810773962,2.07904269,1779.4,1779.0,3.76317591]
[1745810774368,2.07904269,1779.4,1778.9,5.5172]
[1745810776025,1.65743408,1779.4,1778.9,5.5172]
[1745810776680,1.65743408,1779.4,1778.9,5.40788344]
[1745810776880,1.65743408,1779.4,1779.0,1.30878834]
[1745810777382,1.65743408,1779.4,1779.1,0.768]
[1745810777531,7.24953408,1779.8,1779.1,0.768]
[1745810777727,3.0,1779.7,1779.1,0.768]
[1745810778673,7.24953408,1779.8,1779.1,0.768]
[1745810781572,7.24953408,1779.8,1779.2,0.7511]
[1745810783679,7.24953408,1779.8,1779.2,1.30281]
[1745810785248,7.24953408,1779.8,1779.2,0.55171]
[1745810785444,3.0,1780.0,1779.3,1.40038344]
[1745810785445,0.7818,1780.0,1779.3,1.40038344]
[1745810785643,0.64188344,1780.1,1779.4,0.7585]
[1745810785644,5.5717,1780.1,1779.4,0.7585]
[1745810785850,0.8057,1780.1,1779.5,0.779]
[1745810786173,4.22020011,1780.1,1779.5,0.779]
[1745810786471,2.29931752,1780.2,1779.6,0.779]
[1745810786472,1.65743408,1780.2,1779.6,0.779]
[1745810787770,0.64188344,1780.4,1779.6,0.779]
[1745810787771,3.64188344,1780.4,1779.6,0.779]
[1745810787935,5.46313408,1780.5,1779.8,0.779]
[1745810788135,3.55023583,1780.5,1779.8,5.545]
[1745810788336,6.55023583,1780.5,1779.9,0.779]
[1745810789049,2.74453583,1780.5,1779.9,0.779]
[1745810789276,0.64188344,1780.7,1779.9,0.779]
[1745810789462,0.64188344,1780.7,1780.0,0.779]
[1745810792291,2.29931752,1780.7,1780.0,0.779]
[1745810792497,5.29931752,1780.7,1780.0,0.779]
[1745810793297,5.71788291,1780.7,1780.0,0.779]
[1745810793500,6.3702412,1780.7,1780.0,0.779]
[1745810794898,0.7989,1780.6,1780.0,0.779]
[1745810795294,0.71209493,1780.5,1780.0,0.779]
[1745810795793,0.64188344,1780.5,1780.0,5.544]
[1745810797002,0.64188344,1780.3,1780.0,5.544]
[1745810797300,0.71210483,1780.3,1780.0,4.765]
[1745810797709,0.64188344,1780.3,1780.0,4.765]
[1745810798507,0.88112135,1780.2,1779.7,0.7846]
[1745810798691,0.64188344,1780.1,1779.7,0.7846]
[1745810799195,1.45278344,1779.9,1779.6,8.52717591]
[1745810799391,0.07023636,1779.8,1779.6,4.764]
[1745810799590,1.45278344,1779.9,1779.6,4.764]
[1745810800582,0.64188344,1779.7,1779.4,5.5496]
[1745810804117,0.64188344,1779.7,1779.4,4.765]
[1745810804415,0.64188344,1779.5,1779.2,4.765]
[1745810805012,0.71213556,1779.5,1779.2,4.765]
[1745810805398,0.64188344,1779.5,1779.2,4.765]
[1745810809518,0.63600616,1779.5,1779.2,4.765]
[1745810810095,4.2031101,1779.6,1779.2,5.2415]
[1745810810413,4.2031101,1779.6,1779.3,0.7837]
[1745810811596,3.4287101,1779.6,1779.3,0.7837]
[1745810811790,2.18736583,1779.7,1779.3,0.7837]
[1745810811791,1.65743408,1779.7,1779.3,0.7837]
[1745810813018,1.65743408,1779.7,1779.3,1.33857]
[1745810814399,2.08744296,1779.7,1779.3,1.33857]
[1745810818516,1.65743408,1779.7,1779.3,1.33857]
[1745810821111,1.65743408,1779.7,1779.4,0.7841]
[1745810821728,3.0,1779.9,1779.4,0.7841]
[1745810824307,4.65743408,1780.0,1779.4,0.7841]
[1745810825117,1.65743408,1780.0,1779.5,0.64188344]
[1745810825649,1.65743408,1780.2,1779.6,0.785]
[1745810826110,1.65743408,1780.2,1779.7,0.7835]
[1745810826872,2.07207267,1780.2,1779.7,0.7835]
[1745810827036,1.65743408,1780.2,1779.7,0.7835]
[1745810836357,4.65743408,1780.4,1779.7,0.7835]
[1745810836568,0.64188344,1780.1,1779.7,0.7835]
[1745810836727,0.64188344,1779.9,1779.6,5.5965]
[1745810837357,0.8096,1780.0,1779.6,5.5965]
[1745810838090,1.22301572,1780.0,1779.6,5.5965]
[1745810839570,0.64188344,1779.9,1779.5,4.764]
[1745810839733,0.64188344,1779.7,1779.4,4.57697591]
[1745810839936,2.29931752,1779.7,1779.4,9.34097591]
[1745810840235,2.29931752,1779.7,1779.4,5.5778]
[1745810840436,2.61061927,1779.7,1779.4,5.5778]
[1745810840849,2.61061927,1779.7,1779.3,0.7984]
[1745810841052,2.61061927,1779.7,1779.2,4.764]
[1745810841254,0.64188344,1779.5,1779.2,4.764]
[1745810841773,1.46468344,1779.5,1779.2,4.764]
[1745810841979,1.95361982,1779.5,1779.1,3.76317591]
[1745810842155,0.64188344,1779.3,1779.1,3.76317591]
[1745810842553,0.64188344,1779.3,1778.8,9.32557591]
[1745810843250,0.64188344,1779.1,1778.8,8.52717591]
[1745810843838,0.64188344,1779.1,1778.8,3.76317591]
[1745810844037,1.65743408,1779.2,1778.8,3.76317591]
[1745810844038,0.64188344,1778.9,1778.8,3.76317591]
[1745810845619,0.64188344,1778.9,1778.6,4.764]
[1745810846175,2.48023408,1779.0,1778.6,4.764]
[1745810846176,1.65743408,1779.0,1778.6,5.32024]
[1745810847079,1.65743408,1779.0,1778.6,4.764]
[1745810853988,0.8092,1778.9,1778.6,4.764]
[1745810856268,1.65743408,1779.0,1778.7,0.7704]
[1745810856785,3.7799,1779.3,1778.7,0.7704]
[1745810858094,2.29931752,1779.4,1778.7,0.7704]
[1745810858095,1.65743408,1779.4,1778.7,0.7704]
[1745810860493,1.65743408,1779.4,1778.8,0.8179]
[1745810861988,2.19862749,1779.4,1778.8,0.8179]
[1745810865999,1.65743408,1779.4,1778.8,0.64188344]
[1745810866310,1.65743408,1779.4,1778.9,0.7939]
[1745810866475,1.65743408,1779.4,1779.0,4.766]
[1745810866675,1.65743408,1779.4,1779.0,5.5599]
[1745810867177,5.48223408,1779.7,1779.1,0.7939]
[1745810867384,6.57124583,1779.7,1779.1,1.34989]
[1745810870924,6.64149286,1779.7,1779.1,1.34989]
[1745810871102,0.64188344,1779.6,1779.1,1.34989]
[1745810871811,0.64188344,1779.6,1779.1,0.7939]
[1745810875985,0.64188344,1779.4,1779.1,0.7939]
[1745810877031,1.39998344,1779.6,1779.1,0.7939]
[1745810877406,4.65743408,1779.5,1779.1,0.7939]
[1745810878731,1.65743408,1779.5,1779.1,0.7939]
[1745810879589,1.65743408,1779.5,1779.1,1.34979]
[1745810879794,6.42343408,1779.8,1779.2,0.7841]
[1745810880027,4.765,1780.0,1779.2,0.7841]
[1745810881697,4.765,1780.0,1779.2,1.20994952]
[1745810881903,4.765,1780.0,1779.3,0.7891]
[1745810882122,5.40688344,1780.0,1779.3,0.7891]
[1745810884938,4.765,1780.0,1779.3,0.7891]
[1745810887843,5.61173224,1780.0,1779.3,0.7891]
[1745810888043,5.5415,1780.0,1779.3,0.7891]
[1745810888556,5.61173225,1780.0,1779.3,0.7891]
[1745810890687,5.5415,1780.0,1779.3,0.7891]
[1745810892956,7.03551583,1780.0,1779.3,0.7891]
[1745810893156,0.70355158,1779.9,1779.3,0.7891]
[1745810893321,0.77378639,1779.9,1779.3,0.7891]
[1745810893654,0.07023481,1779.9,1779.3,0.7891]
[1745810893842,0.07023481,1779.9,1779.4,4.764]
[1745810894350,1.42378344,1780.0,1779.5,0.7598]
[1745810894558,3.08121752,1780.0,1779.5,0.7598]
[1745810894922,1.65743408,1780.0,1779.5,0.7598]
[1745810895124,6.42143408,1780.3,1779.6,0.7598]
[1745810895327,1.65743408,1780.3,1779.8,0.7686]
[1745810895628,5.40588344,1780.6,1779.9,0.7686]
[1745810895828,7.04288242,1780.6,1780.0,0.7686]
[1745810896355,2.27888242,1780.6,1780.0,0.7686]
[1745810896556,2.29931752,1780.6,1780.0,0.7686]
[1745810900334,1.65743408,1780.6,1780.0,0.7686]
[1745810901150,1.65743408,1780.6,1780.1,0.64188344]
[1745810901338,0.78144409,1781.2,1780.4,0.7772]
[1745810902477,0.64762753,1781.2,1780.4,0.7772]
[1745810904074,0.64188344,1781.0,1780.4,0.7772]
[1745810904373,0.64188344,1780.8,1780.5,4.761]
[1745810904871,1.41668344,1780.8,1780.4,5.5382]
[1745810906345,1.65743408,1780.7,1780.4,5.5382]
[1745810906546,1.96484583,1780.7,1780.4,5.5382]
[1745810906747,4.96484583,1780.7,1780.4,5.5382]
[1745810907060,4.96484583,1780.7,1780.4,0.7772]
[1745810913385,1.65743408,1780.7,1780.4,0.7772]
[1745810915489,4.65743408,1781.0,1780.4,0.7772]
[1745810917792,0.00574409,1781.2,1780.7,0.64188344]
[1745810917980,0.00574409,1781.2,1780.8,5.5849]
[1745810918665,0.00574409,1781.2,1780.9,0.8249]
[1745810919066,0.00574409,1781.2,1780.9,1.38339]
[1745810923198,0.00574409,1781.2,1780.9,0.8249]
[1745810929108,1.65743408,1781.4,1780.9,0.8249]
[1745810932387,0.07017886,1781.3,1780.9,0.8249]
[1745810932589,5.29931752,1781.4,1780.9,0.8249]
[1745810932775,2.29931752,1781.4,1780.9,0.8249]
[1745810932975,1.65743408,1781.3,1780.9,0.8249]
[1745810933180,4.65743408,1781.3,1780.9,0.8249]
[1745810933874,1.65743408,1781.3,1780.9,0.8249]
[1745810938708,1.66243408,1781.5,1780.9,0.8249]
[1745810939307,1.66243408,1781.5,1781.0,4.758]
[1745810939516,1.66243408,1781.5,1781.0,6.0652]
[1745810939929,1.66243408,1781.5,1781.1,0.8314]
[1745810940219,0.005,1781.5,1781.1,0.8314]
[1745810944119,0.7719,1781.5,1781.1,0.8314]
[1745810944422,0.7719,1781.5,1781.2,4.758]
[1745810944600,1.21327834,1781.5,1781.2,4.758]
[1745810944797,2.87071242,1781.5,1781.2,4.758]
[1745810946631,3.64188344,1781.4,1780.5,0.64188344]
[1745810946814,5.29931752,1781.4,1780.7,5.5752]
[1745810946989,5.29931752,1781.4,1780.8,0.8172]
[1745810947191,5.95057711,1781.4,1780.8,1.37472]
[1745810950298,5.95057711,1781.4,1780.7,5.5273]
[1745810950299,0.7589,1781.1,1780.7,5.5273]
[1745810950770,5.41633408,1781.1,1780.7,5.5273]
[1745810951409,4.65743408,1781.1,1780.7,5.5273]
[1745810952041,1.65743408,1781.1,1780.7,4.758]
[1745810952341,1.65743408,1781.1,1780.8,0.814]
[1745810955244,1.65743408,1781.1,1780.8,1.43538834]
[1745810956454,1.65743408,1781.1,1780.7,9.35407591]
[1745810958121,1.65743408,1781.1,1780.7,5.5909]
[1745810959867,1.65743408,1781.1,1780.9,0.8329]
[1745810962218,1.65743408,1781.1,1780.9,4.59607591]
[1745810962449,2.43403408,1781.5,1780.9,4.59607591]
[1745810962652,1.66243408,1781.5,1780.9,3.76317591]
[1745810962954,1.66243408,1781.5,1781.0,0.8329]
[1745810962955,2.19286583,1781.5,1781.0,0.8329]
[1745810963939,1.66243408,1781.5,1781.0,0.8329]
[1745810964157,1.66243408,1781.5,1781.0,5.5899]
[1745810965041,1.73260756,1781.5,1781.0,5.5899]
[1745810965242,1.7326087,1781.5,1781.0,4.757]
[1745810965447,0.8263,1781.4,1781.0,4.757]
[1745810966853,0.005,1781.5,1781.1,0.8232]
[1745810971488,1.19188344,1782.2,1781.1,0.8232]
[1745810971489,0.35818318,1781.9,1781.1,0.8232]
[1745810971630,0.00574409,1783.0,1781.8,0.64188344]
[1745810971831,0.00574409,1783.0,1782.3,1.42098344]
[1745810972073,0.00574409,1783.0,1782.3,9.17798344]
[1745810972286,0.00574409,1783.0,1782.3,9.3765859]
[1745810972498,0.00574409,1783.0,1782.6,1.42098344]
[1745810972774,0.00574409,1783.0,1782.7,0.7791]
[1745810974539,5.39888344,1783.5,1782.7,0.7791]
[1745810975173,7.757,1783.5,1782.7,0.7791]
[1745810975343,5.39888344,1783.5,1782.7,0.7791]
[1745810975531,0.64188344,1783.3,1782.7,0.7791]
[1745810976736,1.43458344,1783.1,1782.5,3.75712883]
[1745810978803,0.7927,1783.1,1782.4,5.5816]
[1745810978971,0.7927,1783.1,1782.4,6.20394834]
[1745810980074,1.65743408,1783.0,1782.4,6.20394834]
[1745810981386,1.65743408,1783.0,1782.4,5.5816]
[1745810981387,2.29931752,1783.0,1782.4,5.5816]
[1745810982104,3.8111,1782.7,1782.4,4.757]
[1745810982275,0.64188344,1782.6,1782.1,21.622]
[1745810982461,2.29931752,1782.6,1782.1,21.622]
[1745810983476,2.91035927,1782.6,1782.1,21.622]
[1745810985874,0.64188344,1782.4,1782.1,4.754]
[1745810986075,0.64188344,1782.5,1782.1,4.754]
[1745810987079,114.56763693,1781.0,1780.9,5.9798]
[1745810987308,76.26911388,1781.0,1780.9,16.34893841]
[1745810987475,76.26911388,1781.0,1780.9,16.14893841]
[1745810987670,76.26911388,1781.0,1780.9,11.39493841]
[1745810987877,76.26911388,1781.0,1780.9,16.14893841]
[1745810988077,76.26911388,1781.0,1780.9,16.66394544]
[1745810988810,76.26911388,1781.0,1780.9,6.29480703]
[1745810989221,76.26911388,1781.0,1780.9,11.47210408]
[1745810989375,76.26911388,1781.0,1780.9,14.47210408]
[1745810990424,73.04292027,1781.0,1780.9,14.47210408]
[1745810990583,73.04292027,1781.0,1780.9,9.71810408]
[1745810990784,73.04292027,1781.0,1780.9,15.50810283]
[1745810991722,73.04292027,1781.0,1780.9,14.95810283]
[1745810992015,73.04292027,1781.0,1780.9,6.72830283]
[1745810992692,73.04292027,1781.0,1780.9,6.2132958]
[1745810993021,73.04292027,1781.0,1780.9,5.17729705]
[1745810996935,73.04292027,1781.0,1780.9,8.69434841]
[1745811000114,73.04292027,1781.0,1780.9,8.27105136]
[1745811000309,73.04292027,1781.0,1780.9,8.9129348]
[1745811000543,73.04292027,1781.0,1780.9,13.88618977]
[1745811001810,73.04292027,1781.0,1780.9,8.27105136]
[1745811003380,73.04292027,1781.0,1780.9,8.69631538]
[1745811003518,6.29048344,1781.8,1780.9,8.69631538]
[1745811003713,5.6486,1781.8,1781.0,1.15979565]
[1745811004450,0.7676,1781.8,1781.2,0.64188344]
[1745811004750,0.7676,1781.8,1781.3,0.51791221]
[1745811006559,0.7676,1781.8,1781.3,5.39891221]
[1745811006854,0.7676,1781.8,1781.4,0.53989122]
[1745811008444,0.7676,1781.8,1781.5,0.51896919]
[1745811009468,0.7676,1781.8,1781.4,0.53989122]
[1745811015357,0.64188344,1781.7,1781.3,4.881]
[1745811015673,0.7627,1781.6,1781.3,4.881]
[1745811015880,1.07723614,1781.6,1781.3,4.881]
[1745811016071,1.07723614,1781.6,1781.0,4.881]
[1745811016236,1.07723614,1781.6,1781.1,0.4881]
[1745811016440,0.7627,1781.6,1781.1,0.4881]
[1745811018089,3.7539,1781.8,1781.1,1.55533567]
[1745811018417,0.7539,1781.8,1781.1,1.55533567]
[1745811019175,66.60658433,1781.0,1780.8,3.0]
[1745811019476,66.60658433,1781.0,1780.9,0.94188344]
[1745811021284,66.60658433,1781.0,1780.9,1.36611904]
[1745811022262,66.60658433,1781.0,1780.9,1.06611904]
[1745811023155,66.60658433,1781.0,1780.9,10.23125745]
[1745811023459,33.17516771,1781.0,1780.9,15.43195745]
[1745811023684,5.6363,1782.2,1781.5,5.61312096]
[1745811023891,0.7853,1782.2,1781.8,0.64188344]
[1745811024088,0.31540571,1782.3,1781.8,0.64188344]
[1745811024405,0.31540571,1782.3,1781.8,3.64188344]
[1745811024701,0.83674409,1782.4,1781.8,3.64188344]
[1745811024909,0.00574409,1782.4,1781.8,3.64188344]
[1745811025064,0.00574409,1782.4,1782.0,0.64188344]
[1745811025263,0.00574409,1782.4,1782.0,5.49188344]
[1745811025480,0.00574409,1782.4,1782.0,4.85]
[1745811026457,0.80924409,1782.4,1782.0,4.85]
[1745811029633,0.00574409,1782.4,1782.0,5.49188344]
[1745811029835,0.00574409,1782.4,1782.1,3.0]
[1745811030057,0.00574409,1782.4,1782.2,0.64188344]
[1745811030433,0.00574409,1782.4,1782.3,8.61072771]
[1745811030667,0.00574409,1782.4,1782.3,3.0]
[1745811033875,0.00574409,1782.4,1782.3,3.41379949]
[1745811034448,0.7645,1782.8,1782.3,3.41379949]
[1745811034873,0.005,1782.8,1782.3,3.41379949]
[1745811035174,0.005,1782.8,1782.4,4.849]
[1745811036550,0.7595,1782.7,1782.4,4.849]
[1745811036956,0.005,1782.8,1782.4,4.849]
[1745811038074,0.64188344,1782.5,1782.4,4.849]
[1745811038250,0.64188344,1782.5,1782.1,4.848]
[1745811038454,0.8297,1782.6,1782.0,4.848]
[1745811039375,0.64188344,1782.5,1782.0,4.848]
[1745811039556,0.8285,1782.4,1782.0,4.848]
[1745811048684,0.64188344,1782.3,1782.0,4.848]
[1745811048851,0.8307,1782.2,1782.0,4.848]
[1745811049055,0.64188344,1782.1,1781.7,4.849]
[1745811049786,0.8307,1782.0,1781.7,4.849]
[1745811050579,3.0,1782.4,1781.7,4.849]
[1745811050580,0.8232,1782.3,1781.7,4.849]
[1745811053496,0.7232,1782.3,1781.7,4.849]
[1745811054356,0.7232,1782.3,1781.9,0.101]
[1745811054563,1.65743408,1782.7,1781.9,3.101]
[1745811054759,0.005,1782.8,1782.0,0.74288344]
[1745811054964,0.005,1782.8,1782.1,4.84]
[1745811055895,0.005,1782.8,1782.2,0.101]
[1745811056696,0.8087,1782.8,1782.2,0.101]
[1745811059108,0.8087,1782.8,1782.2,0.51179211]
[1745811059260,0.8087,1782.8,1782.2,0.101]
[1745811060811,1.45058344,1782.8,1782.2,0.101]
[1745811062077,1.45058344,1782.8,1782.1,4.84]
[1745811063814,0.7891,1782.7,1782.1,4.84]
[1745811063981,0.64188344,1782.6,1782.1,4.84]
[1745811064187,0.7891,1782.5,1782.1,4.84]
[1745811065220,0.7891,1782.5,1782.2,0.101]
[1745811066115,0.7729,1782.7,1782.2,0.101]
[1745811066691,0.7729,1782.7,1782.2,3.101]
[1745811066896,0.005,1782.8,1782.4,0.64188344]
[1745811067099,0.005,1782.8,1782.5,4.94]
[1745811067824,0.005,1782.8,1782.7,8.71046878]
[1745811070052,0.005,1782.8,1782.7,3.53225094]
[1745811076312,0.005,1782.8,1782.7,9.14171972]
[1745811076652,0.005,1782.8,1782.7,3.53225094]
[1745811077758,0.005,1782.8,1782.7,9.14171972]
[1745811078356,0.005,1782.8,1782.7,9.69171972]
[1745811082062,0.005,1782.8,1782.7,3.53225094]
[1745811082371,0.005,1782.8,1782.7,9.14171972]
[1745811082867,0.005,1782.8,1782.7,3.53225094]
[1745811083232,0.005,1782.8,1782.7,9.14171972]
[1745811083462,0.005,1782.8,1782.7,3.53225094]
[1745811085365,0.005,1782.8,1782.7,9.14171972]
[1745811085573,0.005,1782.8,1782.7,9.69171972]
[1745811087259,0.4054183,1783.6,1783.4,0.55]
[1745811087569,0.4054183,1783.6,1783.5,7.951]
[1745811087775,0.4054183,1783.6,1783.5,7.85]
[1745811087971,0.4054183,1783.6,1783.5,4.85]
[1745811087972,1.2307183,1783.6,1783.5,4.85]
[1745811088176,0.4054183,1783.6,1783.5,5.26587126]